Cogmind - Beta 13 *** ADVENTURER MODE // 2024.04.02 @ 18:24:00 Player: Findu Result: Self-destructed Performance ------------- Evolutions (1) 500 Regions Visited (4) 800 Robots Destroyed (27) 135 Value Destroyed (520) 520 Prototype IDs (1) 20 Alien Tech Used (0) 0 Bonus (92) 92 TOTAL SCORE: 2067 Bonus ------- Follower Combat Kills 92 Cogmind --------- Core Integrity 210/400 Matter 300/300 Energy 99/100 System Corruption 0% Temperature Cool (0) Movement Core (50) Location -9/Mines Parts ------- > --- POWER (1) -------- (None) > --- PROPULSION (3) --- (None) > --- UTILITY (3) ------ Visual Processing Unit Signal Interpreter Hacking Suite > --- WEAPON (2) ------- (None) > --- INVENTORY (5) ---- Assault Rifle Datajack Katana Peak State ------------ > --- POWER ------------ Light Nuclear Core > --- PROPULSION ------- Hover Unit Hover Unit Hover Unit > --- UTILITY ---------- Visual Processing Unit Signal Interpreter Hacking Suite > --- WEAPON ----------- Ion Cannon Improved Assault Rifle > --- INVENTORY -------- Ion Engine Structural Scanner EM Pulse Gun Assault Rifle Datajack [Rating: 18] Favorites ----------- Power Ion Engine Engine Ion Engine Power Core Light Nuclear Core Propulsion Aluminum Leg Treads Light Treads Leg Aluminum Leg Hover Unit Hover Unit Utility Signal Interpreter Device Structural Scanner Storage Small Storage Unit Processor Signal Interpreter Hackware Hacking Suite Weapon Assault Rifle Energy Gun Small Laser Energy Cannon Ion Cannon Ballistic Gun Assault Rifle Launcher Rocket Launcher Special Melee Weapon Datajack Build | -11 -10 -10 -9 -9 ------- Run | Yrd Mat Min Mat Min Slots Evolved 2 | . . . 2 . Power . | . . . . . Propulsion 1 | . . . 1 . Utility 1 | . . . 1 . Weapon . | . . . . . Parts Attached 33 | 8 1 4 14 6 Power 2 | 1 . . 1 . Engine 1 | 1 . . . . Core 1 | . . . 1 . Reactor . | . . . . . Propulsion 13 | 4 . . 5 4 Treads 2 | 2 . . . . Leg 6 | 2 . . . 4 Wheel . | . . . . . Hover 5 | . . . 5 . Flight . | . . . . . Utility 6 | 1 1 . 4 . Device 1 | . . . 1 . Storage 1 | 1 . . . . Processor 3 | . 1 . 2 . Hackware 1 | . . . 1 . Protection . | . . . . . Artifact . | . . . . . Weapon 12 | 2 . 4 4 2 Energy Gun 1 | . . . 1 . Energy Cannon 2 | . . . 2 . Ballistic Gun 6 | 2 . 2 1 1 Ballistic Cannon . | . . . . . Launcher 2 | . . 2 . . Special Weapon . | . . . . . Impact Weapon . | . . . . . Slashing Weapon . | . . . . . Piercing Weapon . | . . . . . Special Melee Weapon 1 | . . . . 1 Unidentified Prototypes 1 | . . . 1 . Parts Lost 8 | . . . . 8 Power 1 | . . . . 1 Propulsion 5 | . . . . 5 Utility . | . . . . . Weapon 2 | . . . . 2 Highest Loss Streak 6 | . . . . 6 To Critical Strikes . | . . . . . Average Slot Usage (%) 94 | . 97 100 88 79 Engine 10 | . 14 14 5 . Core 2 | . . . 5 7 Leg 20 | . 28 28 6 11 Hover 6 | . . . 19 11 Storage 10 | . 14 14 3 . Processor 14 | . 11 14 16 22 Hackware 2 | . . . 8 11 Energy Cannon 2 | . . . 8 8 Ballistic Gun 21 | . 28 24 12 6 Launcher 1 | . . 3 . . Naked Turns . | . . . . . Heaviest Build 19 | 14 14 16 19 14 Greatest Support 40 | 40 20 20 20 30 Greatest Overweight (x) 1 | . . . 1 1 Average Overweight (x) . | . . . . . Largest Inventory Capacity 8 | 8 8 8 8 5 Average Capacity 7 | 5 8 8 5 5 Most Carried 7 | 2 3 4 7 4 Average Carried 2 | . 1 3 3 2 Final Capacity 8 | 8 8 8 5 5 Final Carried 4 | . 3 4 2 3 Class Distribution -------------------- 74% | Mutant 22% | Scavenger-Mutant Dominant Class ---------------- Mutant | -10/Materials Mutant | -10/Mines Scavenger-Mutant | -9/Materials Scavenger-Mutant | -9/Mines Resources | -11 -10 -10 -9 -9 ----------- Run | Yrd Mat Min Mat Min Matter Collected 743 | 61 319 51 238 74 Remotely . | . . . . . Salvage Created 714 | . 297 41 165 211 Parts 65 | . 24 7 20 14 Haulers Intercepted . | . . . . . Recyclers Shooed . | . . . . . Parts Field Recycled . | . . . . . Retrieved Matter . | . . . . . Parts Self-Destructed . | . . . . . Prevented . | . . . . . Kills | -11 -10 -10 -9 -9 ------- Run | Yrd Mat Min Mat Min Combat Hostiles Destroyed 21 | . 7 3 7 4 Guns 13 | . 7 3 3 . Cannons 8 | . . . 4 4 Classes Destroyed 7 | . 3 . 1 3 Recycler 1 | . . . . 1 Operator 1 | . . . 1 . Watcher 5 | . 3 . 2 . Swarmer 12 | . 3 3 6 . Grunt 7 | . 4 . 1 2 Duelist 1 | . . . . 1 Assembled 1 | . . . . 1 Best Kill Streak 8 | . 5 2 8 3 Combat Bots Only 7 | . 5 2 7 3 Max Kills in Single Turn 2 | . 2 2 2 1 Gunslinging 1 | . 1 1 . . Exploded . | . . . . . Melee . | . . . . . Uniques/NPCs Destroyed . | . . . . . Combat | -11 -10 -10 -9 -9 -------- Run | Yrd Mat Min Mat Min Hostile Shots Fired 102 | . 17 6 21 58 Missed 29 | . 7 2 5 15 Damage Taken 965 | . 85 23 118 739 Core 214 | . 14 10 13 177 Absorbed by Shields . | . . . . . Ignored by Resistances 277 | . 28 8 35 206 Regen/Repaired (Parts) 35 | . . . 35 . Core Remaining (%) 95 | 100 . 90 . . Volleys Fired 49 | . 15 5 18 11 Largest 2 | . 2 2 2 2 Hottest 83 | . 40 53 83 83 Shots Fired 94 | . 30 10 34 20 Gun 66 | . 30 7 20 9 Cannon 25 | . . . 14 11 Launcher 3 | . . 3 . . Special . | . . . . . Kinetic 65 | . 30 7 19 9 Thermal 26 | . . . 15 11 Explosive 3 | . . 3 . . Electromagnetic . | . . . . . Robot Hit Streak 11 | . 7 6 11 6 Robot Miss Streak 2 | . 1 . 2 1 Penetration Max . | . . . . . Secondary Targets 3 | . 2 1 . . Max Gunslinging Chain 1 | . 1 1 . . Shots Hit Robots 60 | . 21 4 22 13 Core Hits 33 | . 12 3 11 7 Critical Kills 1 | . 1 . . . Critical Parts Destroyed . | . . . . . Critical Strikes 1 | . 1 . . . Destroy 1 | . 1 . . . Melee Attacks 2 | . . . . 2 Impact . | . . . . . Slashing . | . . . . . Piercing . | . . . . . Sneak Attacks . | . . . . . Combat Hostiles . | . . . . . Follow-up Attacks . | . . . . . Damage Inflicted 992 | . 268 67 410 247 Guns 551 | . 266 45 177 63 Cannons 417 | . . . 233 184 Explosions . | . . . . . Melee . | . . . . . Ramming 24 | . 2 22 . . Kinetic 540 | . 266 45 166 63 Thermal 428 | . . . 244 184 Explosive . | . . . . . Electromagnetic . | . . . . . Impact . | . . . . . Slashing . | . . . . . Piercing . | . . . . . Highest Corruption 1 | . 1 1 . . Average Corruption 1 | . 1 1 . . Corruption Purged . | . . . . . Corruption Blocked . | . . . . . Effects 3 | . 1 2 . . Message Errors 1 | . 1 . . . Matter Fused 1 | . . 1 . . Heat Flow Errors 1 | . . 1 . . Overload Shots . | . . . . . Overflow Damage 4 | . . . 4 . Projectiles 4 | . . . 4 . Explosions . | . . . . . Melee . | . . . . . Knockbacks . | . . . . . Impact . | . . . . . Kinetic . | . . . . . Secondary . | . . . . . Self-Inflicted Damage . | . . . . . Shots . | . . . . . Rammed . | . . . . . Targets Rammed 5 | . 1 3 . 1 Kicked 5 | . 1 3 . 1 Crushed . | . . . . . Highest Temperature 177 | . . 177 90 115 Average Temperature 40 | . . 93 32 37 Received Heat Transfer 186 | . 18 . 12 156 Siege Activations . | . . . . . Robots Corrupted . | . . . . . Combat Hostiles . | . . . . . Parts Fried . | . . . . . Impact Corruptions . | . . . . . Robots Melted . | . . . . . Combat Hostiles . | . . . . . Parts Melted 2 | . . . 1 1 Heat Transferred 691 | . . . 395 296 Parts Sabotaged . | . . . . . Parts Stolen . | . . . . . Parts Stripped . | . . . . . Power Chain Reactions . | . . . . . Alert | -11 -10 -10 -9 -9 ------- Run | Yrd Mat Min Mat Min Peak Influence 237 | . 209 206 237 72 Initial 12 | . . . 1 12 Average 62 | . 67 60 72 46 Maximum Alert Level 1 | . 1 1 1 . Low Security (%) 87 | 100 87 88 82 100 Level 1 12 | . 12 11 17 . Level 2 . | . . . . . Level 3 . | . . . . . Level 4 . | . . . . . Level 5 . | . . . . . High Security . | . . . . . Max Security . | . . . . . Squads Dispatched 2 | . 1 . 1 . Investigation 1 | . 1 . . . Extermination . | . . . . . Reinforcement 1 | . . . 1 . Assault . | . . . . . Garrison . | . . . . . Intercept . | . . . . . Searches Triggered . | . . . . . Construction Impeded . | . . . . . Haulers Reinforced . | . . . . . Active Scanning Responses . | . . . . . Cargo Convoy Interrupts . | . . . . . Stealth | -11 -10 -10 -9 -9 --------- Run | Yrd Mat Min Mat Min Distress Signals 5 | . 1 . 4 . Communications Jammed . | . . . . . Distress Signals . | . . . . . Times Spotted 40 | . 10 6 14 10 Peak Tracking Total 6 | . 3 3 6 6 Tactical Retreats . | . . . . . Traps | -11 -10 -10 -9 -9 ------- Run | Yrd Mat Min Mat Min Traps Triggered 3 | . 3 . . . Indirectly . | . . . . . Trap Hack Attempts . | . . . . . Triggered . | . . . . . Disarmed . | . . . . . Reprogrammed . | . . . . . Reused . | . . . . . Traps Extracted . | . . . . . Installed . | . . . . . Triggered . | . . . . . Machines | -11 -10 -10 -9 -9 ---------- Run | Yrd Mat Min Mat Min Machines Disabled . | . . . . . Max in Single Turn . | . . . . . Machines Repaired . | . . . . . Machines Dismantled . | . . . . . Machines Sabotaged . | . . . . . Overloaded Fab Kills . | . . . . . Hacking | -11 -10 -10 -9 -9 --------- Run | Yrd Mat Min Mat Min Machines Accessed 9 | . 4 1 4 . Terminals 8 | . 4 1 3 . Fabricators . | . . . . . Repair Stations 1 | . . . 1 . Recycling Units . | . . . . . Scanalyzers . | . . . . . Garrison Access . | . . . . . Total Hacks 28 | . 10 2 16 . Successful 18 | . 7 1 10 . Failed 10 | . 3 1 6 . Catastrophic . | . . . . . Database Lockouts . | . . . . . Manual 6 | . 2 1 3 . Terminals 22 | . 10 2 10 . Fabricators . | . . . . . Repair Stations 6 | . . . 6 . Recycling Units . | . . . . . Scanalyzers . | . . . . . Garrison Access . | . . . . . Terminal Hacks 13 | . 7 1 5 . Record 3 | . 1 . 2 . Branch Access Points 1 | . . . 1 . Emergency Access Points 1 | . 1 . . . Alert Level 1 | . . . 1 . Unreport Threat 1 | . 1 . . . Dispatch Records 1 | . 1 . . . Transport Status 1 | . 1 . . . Reinforcement Status 1 | . . . 1 . Hauler Manifests 1 | . 1 . . . Zone Layout 2 | . 1 1 . . Fabricator Hacks . | . . . . . Repair Station Hacks 5 | . . . 5 . Scan Component 3 | . . . 3 . Repair 2 | . . . 2 . Recycling Unit Hacks . | . . . . . Scanalyzer . | . . . . . Garrison Access Hacks . | . . . . . Unauthorized Hacks . | . . . . . Terminals . | . . . . . Fabricators . | . . . . . Repair Stations . | . . . . . Recycling Units . | . . . . . Scanalyzers . | . . . . . Garrison Access . | . . . . . Data Cores Recovered . | . . . . . Used . | . . . . . Hacking Detections 5 | . 1 1 3 . Full Trace Events 1 | . 1 . . . Feedback Events 1 | . 1 . . . Corruption 1 | . 1 . . . Feedback Blocked . | . . . . . Robot Schematics Acquired . | . . . . . Robots Built . | . . . . . Authchips . | . . . . . Time . | . . . . . Total Robot Build Rating . | . . . . . Part Schematics Acquired . | . . . . . Parts Built . | . . . . . Authchips . | . . . . . Time . | . . . . . Total Part Build Rating . | . . . . . Parts Repaired 2 | . . . 2 . Time 52 | . . . 52 . Parts Recycled . | . . . . . Recycled Matter . | . . . . . Retrieved Matter . | . . . . . Retrieved Components . | . . . . . Parts Scanalyzed . | . . . . . Part Schematics Acquired . | . . . . . Parts Damaged . | . . . . . Bothacking | -11 -10 -10 -9 -9 ------------ Run | Yrd Mat Min Mat Min Used RIF Installer . | . . . . . Robots Hacked 1 | . . . . 1 Non-combat . | . . . . . Combat 1 | . . . . 1 Robot Hacks Applied 1 | . . . . 1 parse_system 1 | . . . . 1 Relay Couplers Released . | . . . . . Fabnet Peak Effective % . | . . . . . Robots Rewired . | . . . . . Allies Hacked . | . . . . . Hacks Repelled . | . . . . . Allies | -11 -10 -10 -9 -9 -------- Run | Yrd Mat Min Mat Min Total Allies 3 | . . 3 . . Largest Group 3 | . . 3 2 . Highest-Rated Group 40 | . . 40 32 . Highest-Rated Ally 16 | . . 16 16 . Total Orders . | . . . . . Ally Attacks 31 | . . 8 23 . Total Damage 265 | . . 96 169 . Kills 8 | . . 5 3 . Allies Corrupted . | . . . . . Allies Melted . | . . . . . Intel | -11 -10 -10 -9 -9 ------- Run | Yrd Mat Min Mat Min Robot Analysis Total . | . . . . . Derelict Logs Recovered 1 | . . 1 . . Drone Launches . | . . . . . Drone Recoveries . | . . . . . Exploration | -11 -10 -10 -9 -9 ------------- Run | Yrd Mat Min Mat Min Turns Passed 2350 | 97 681 801 654 117 Spaces Moved 2018 | 75 523 643 697 80 Core 60 | 16 . . . 44 Treads 13 | 13 . . . . Legs 1377 | 46 523 643 137 28 Wheels . | . . . . . Hover 568 | . . . 560 8 Flight . | . . . . . Fastest Speed 50 | 50 120 120 52 50 Average Speed 100 | 112 120 120 67 88 Slowest Speed 190 | 160 120 120 120 190 Overloaded Moves . | . . . . . Propulsion Burnouts . | . . . . . Robots Hopped . | . . . . . Cave-ins Triggered . | . . . . . Exploration Rate (%) 39 | 5 62 89 23 18 Regions Visited 4 Branch Regions 2 Pre-discovered Areas 1 | . . 1 . . Known Exits Taken 3 | . 1 1 1 . Unknown Exits Taken 1 | 1 . . . . Scrap Searched 2 | . . 2 . . Spaces Dug 37 | . . 37 . . Terrain Destroyed 39 | . . 37 1 1 Melee . | . . . . . Projectile 2 | . . . 1 1 AOE 37 | . . 37 . . Terrain Rammed . | . . . . . Walls Destroyed . | . . . . . Machines Disabled . | . . . . . Actions | -11 -10 -10 -9 -9 --------- Run | Yrd Mat Min Mat Min Total 2237 | 86 545 660 843 103 Wait 101 | . 2 5 94 . Move 2014 | 74 522 642 696 80 Hop . | . . . . . Pick Up 12 | . 3 1 6 2 Fast Attach 17 | 8 1 . 7 1 Attach 2 | . . . 1 1 Detach 7 | 2 . . 5 . Swap 14 | . . 4 6 4 Drop 13 | 2 . . 10 1 Fire 49 | . 15 5 18 11 Melee 2 | . . . . 2 Ram . | . . . . . Kick 5 | . 1 3 . 1 Crush . | . . . . . Escape Stasis . | . . . . . Rewire 1 | . 1 . . . Trap . | . . . . . Miscellaneous . | . . . . . Route ------- -11/Scrapyard -10/Materials (discovered 3 exits: *Mat x2 / *Min) -10/Mines (discovered 2 exits: *Mat x2) -9/Materials (discovered 3 exits: *Mat / *Min x2) -9/Mines History --------- Turn | Location | Event 6 | -11/Scrapyard | Discovered new exit (range 13) 98 | -11/Scrapyard | Entered Materials 316 | -10/Materials | Build established: Mutant 328 | -10/Materials | Discovered new exit (range 7) 334 | -10/Materials | Identified exit to Mines 424 | -10/Materials | Discovered new exit (range 10) 439 | -10/Materials | Identified exit to Materials 596 | -10/Materials | Discovered exit to Materials (range 15) 779 | -10/Materials | Entered Mines 786 | -10/Mines | Received a Rocket Launcher from a helpful Derelict 1039 | -10/Mines | Discovered exit to Materials (range 14) 1203 | -10/Mines | Assisted by bots powering up and referring to "LRC-V3" 1238 | -10/Mines | Discovered exit to Materials (range 12) 1254 | -10/Mines | Learned location of Zion (-6) 1580 | -10/Mines | Entered Materials 1580 | -9/Materials | Accompanied by 2 allies 1580 | -9/Materials | Evolved 2 slots: Propulsion x1, Utility x1 1808 | -9/Materials | Identified exit to Mines 1890 | -9/Materials | Destroyed 7 combat bots 1974 | -9/Materials | Repaired Hover Unit 2001 | -9/Materials | Repaired Hover Unit 2064 | -9/Materials | Discovered new exit (range 4) 2066 | -9/Materials | Identified exit to Materials 2174 | -9/Materials | Build established: Scavenger-Mutant 2234 | -9/Materials | Entered Mines 2235 | -9/Mines | Assembled infested the area 2237 | -9/Mines | Met a Derelict bent on vengeance 2351 | -9/Mines | Self-destructed Last Messages --------------- Dropped Hover Unit. Kicked R-06 Scavenger out of the way. R-06 Scavenger destroyed. Acquired 3 matter. Acquired Katana. U-05 Engineer lays Concrete. U-05 Engineer builds a Wall. Lgt. Nuclear Core destroyed. The unstable cave ceiling collapses. Imp. Assault Rifle destroyed. The unstable cave ceiling collapses. Ion Cannon destroyed. Aluminum Leg destroyed. The unstable cave ceiling collapses. Aluminum Leg destroyed. The unstable cave ceiling collapses. U-05 Engineer lays Concrete. U-05 Engineer builds a Wall. R-06 Scavenger collects Sml. Storage Unit. The unstable cave ceiling collapses. Map ----- +----------------------------------------------------+ | ??????????????% #?????? | | ?????????????###### # # ##?????? | | ??????????????????## # #??????? | | ????????????????? # # ?### #??????? | | ????????????????# ?# # ## # #??????? | | ????????????????# ??#%### " ###??????? | | ????????????????#?? # % #????????? | | ??????????????????# ##### #????????? | | ??????????????????#?# ## ###????????? | | ???????????????????# #### ##????###???? | | ???????????????????######??# ###### ##??? | | ???????????????????????????# ## #??? | | ???????????????????????????## #??? | | ????????????????????????????## ##??? | | ?????????????????????????????### ## ###???? | | ???????????????????????????????# ## #?????? | | ???????????????????????????????# #?????? | | ???????????????????????????????# ####?????? | | ???????????????????????????????# #????????? | | ???????????????????????????????# #????????? | | ???????????????????????????????# #????????? | | ???????????????????????######### #????????? | | ???????????????????????# #????????? | | ???????????????????????# #????????? | | ???????????????????????# #########????????? | | ???????????????????????# @#????????????????? | | ??????????????????????# #????????????????? | | ????????????????????? #????????????????? | | ??????????????????? a#????????????????? | | ??????????????????## %% #????????????????? | | ???????????????????## ] ????????????????? | | ????????????????????## % ????????????????? | | ?????????????????????## ????????????????? | | ??????????????????????## ]????????????????? | | ???????????????????????# ????????????????? | | ???????????????????????# ] ????????????????? | | ???????????????????????# ????????????????? | | ??????????????????????? ????????????????? | | ??????????????????????? % ???????????????? | | ??????????????????????? *%[ ???????????????? | | ??????????????????????? %==#???????????????? | | ??????????????????????? #%=????????????????? | | ???????????????????????#?a ????????????????? | | ???????????????????????????????????????????? | | ???????????????????????????????????????????? | | ???????????????????????????????????????????? | | ???????????????????????????????????????????? | | ???????????????????????????????????????????? | | ???????????????????????????????????????????? | | ???????????????????????????????????????????? | +----------------------------------------------------+ Best States ------------- Heat Dissipation 28 Energy Generation 14 Energy Capacity 250 Matter Stores 300 Matter Capacity 300 Sight Range 18 Terrain Scan Density 10 Resistance: KI 20 Resistance: TH 20 Resistance: EX 20 Resistance: EM 20 Resistance: I 20 Resistance: S 20 Resistance: P 20 Evasion (%) 55 Recoil Reduction 2 Offensive Hacking 20 Item Schematics ----------------- None Robot Schematics ------------------ None Fabricated ------------ Nothing Alien Tech Used ----------------- None Achievements -------------- None Challenges ------------ None Game ------ Seed SpacefoldShadingVibroblade Manual? 0 Play Time 00:34:38 Cumulative 5.0 hours Start 2024.04.02 @ 17:44:08 End 2024.04.02 @ 18:24:00 Sessions 1 Manual Loads 0 Difficulty Adventurer Special Mode None Game No. 4 Rogue 0 Adventurer 4 Explorer 0 Win Type - Total 0 Types 0/0/0/0/0/0/0/0/0 Lore% 4 Gallery% 8 Achievement% 10 Wizard Run 0 Options --------- Layout 1 ASCII 0 Keyboard 1 Movement Vi Keybinds 0 Fullscreen 1 Font 32/SmallcapsGlow Map View 50x35 Zoom Use 0% Tactical HUD 0 Map Filters NONE Filters NONE Steam 1 RUN: 42102b6b-125e-4cfb-848a-05f1474c9682